bitfinex/quotes_SOLUSD_20250416
["timestamp","ask_amount","ask_price","bid_price","bid_amount"]
[1744810132763,19.85736397,124.72,124.69,8.01988932]
[1744810132965,19.85736397,124.73,124.69,8.01988932]
[1744810135363,19.85736397,124.74,124.69,47.9269766]
[1744810135571,19.85736397,124.74,124.69,28.06961263]
[1744810135764,19.85736397,124.74,124.69,47.9269766]
[1744810138085,26.0,124.77,124.71,19.85736397]
[1744810138256,19.85736397,124.75,124.71,19.85736397]
[1744810138571,19.85736397,124.75,124.7,38.6491744]
[1744810138773,19.85736397,124.74,124.7,38.6491744]
[1744810139082,19.85736397,124.74,124.7,18.79181043]
[1744810139263,19.85736397,124.73,124.69,28.06961263]
[1744810139573,19.85736397,124.74,124.69,47.9269766]
[1744810142380,19.85736397,124.73,124.69,28.06961263]
[1744810142569,19.85736397,124.73,124.69,8.01988932]
[1744810142765,26.0,124.77,124.71,38.6491744]
[1744810143074,25.73788143,124.76,124.72,19.85736397]
[1744810143275,5.88051746,124.76,124.72,19.85736397]
[1744810143486,5.88051746,124.76,124.73,8.0173174]
[1744810143854,19.85736397,124.76,124.73,8.0173174]
[1744810144055,251.6055,124.82,124.74,19.85736397]
[1744810144256,19.85736397,124.8,124.75,19.85736397]
[1744810144959,19.85736397,124.81,124.76,19.85736397]
[1744810145166,285.6172984,124.82,124.76,19.85736397]
[1744810145566,19.85736397,124.81,124.77,8.01474713]
[1744810145769,19.85736397,124.82,124.78,19.85736397]
[1744810145976,19.85736397,124.83,124.78,19.85736397]
[1744810146674,19.85736397,124.82,124.78,19.85736397]
[1744810147065,19.85736397,124.82,124.77,47.90897893]
[1744810147264,19.85736397,124.81,124.77,28.05161496]
[1744810147459,19.85736397,124.8,124.76,8.01538954]
[1744810147658,19.85736397,124.8,124.76,27.87275351]
[1744810148572,19.85736397,124.8,124.76,8.01538954]
[1744810149874,19.85736397,124.8,124.76,27.87275351]
[1744810150179,19.85736397,124.81,124.76,27.87275351]
[1744810150567,19.85736397,124.8,124.76,27.87275351]
[1744810151378,8.01184559,124.82,124.75,47.91314684]
[1744810151579,19.85736397,124.8,124.75,47.91314684]
[1744810153176,19.85736397,124.79,124.75,8.01603206]
[1744810153363,19.85736397,124.78,124.75,8.01603206]
[1744810154657,68.93799056,124.86,124.75,47.91347619]
[1744810154858,27.8669755,124.85,124.8,19.85736397]
[1744810155163,19.85736397,124.84,124.79,19.85736397]
[1744810155368,25.73721863,124.84,124.79,19.85736397]
[1744810155775,5.87985466,124.84,124.81,38.6491744]
[1744810155976,25.73721863,124.84,124.79,19.85736397]
[1744810156380,19.85736397,124.83,124.79,19.85736397]
[1744810156563,26.0,124.85,124.79,8.01346261]
[1744810156761,19.85736397,124.82,124.79,8.01346261]
[1744810157788,19.85736397,124.82,124.78,8.01410482]
[1744810159179,8.0108659,124.84,124.78,27.87146879]
[1744810159379,19.85736397,124.83,124.78,27.87146879]
[1744810159778,19.85736397,124.82,124.78,8.01410482]
[1744810162489,19.85736397,124.83,124.79,19.85736397]
[1744810162792,19.85736397,124.84,124.79,19.85736397]
[1744810162979,26.0,124.85,124.81,27.86954248]
[1744810163297,45.85736397,124.85,124.81,8.01217851]
[1744810163490,26.0,124.85,124.81,8.01217851]
[1744810163687,45.85736397,124.85,124.81,8.01217851]
[1744810164482,19.85736397,124.84,124.81,8.01217851]
[1744810165687,53.86697729,124.85,124.81,8.01217851]
[1744810166796,45.85736397,124.85,124.81,8.01217851]
[1744810167297,38.70409674,124.85,124.81,8.01217851]
[1744810167689,46.71374549,124.85,124.81,8.01217851]
[1744810167895,38.70409674,124.85,124.81,8.01217851]
[1744810168693,46.7139972,124.85,124.81,8.01217851]
[1744810169892,8.00768737,124.88,124.82,12.70409674]
[1744810170095,12.70409674,124.87,124.82,12.70409674]
[1744810170395,12.70409674,124.84,124.81,9.67277851]
[1744810170794,12.70409674,124.85,124.81,9.67277851]
[1744810173501,20.71385752,124.85,124.81,8.01217851]
[1744810173683,8.00832866,124.87,124.81,8.01217851]
[1744810173889,12.70409674,124.84,124.81,8.01217851]
[1744810174501,12.70409674,124.84,124.8,8.01282051]
[1744810175814,12.70409674,124.83,124.8,8.01282051]
[1744810176106,12.70409674,124.81,124.79,8.01331519]
[1744810177010,8.01091645,124.83,124.79,8.01331519]
[1744810177196,12.70409674,124.82,124.79,8.01331519]
[1744810179382,8.00986536,124.85,124.79,8.01331519]
[1744810179825,12.70409674,124.83,124.79,8.01331519]
[1744810181425,8.00986536,124.85,124.79,8.01331519]
[1744810181714,12.70409674,124.84,124.79,40.75106847]
[1744810181912,26.0,124.86,124.79,40.75106847]
[1744810181913,26.0,124.86,124.8,14.35479674]
[1744810182125,1.578,124.89,124.82,12.70409674]
[1744810182295,12.70409674,124.88,124.83,31.49590717]
[1744810182616,12.70409674,124.87,124.83,18.79181043]
[1744810182915,12.70409674,124.87,124.84,8.01025312]
[1744810183982,12.70409674,124.86,124.84,8.01025312]
[1744810184306,27.578,124.89,124.84,8.01025312]
[1744810184307,12.70409674,124.87,124.84,8.01025312]
[1744810184815,12.70409674,124.87,124.83,8.01089481]
[1744810186092,12.70409674,124.88,124.83,20.71499155]
[1744810186591,12.70409674,124.88,124.83,40.74222859]
[1744810187689,12.70409674,124.87,124.83,28.03813185]
[1744810188292,12.70409674,124.86,124.83,8.01089481]
[1744810188707,12.70409674,124.86,124.82,8.01153661]
[1744810189309,12.70409674,124.86,124.82,40.74447488]
[1744810189515,12.70409674,124.87,124.82,40.74447488]
[1744810192106,38.70409674,124.89,124.84,12.70409674]
[1744810192500,5.89607976,124.88,124.84,12.70409674]
[1744810192808,12.70409674,124.87,124.84,8.01025312]
[1744810193208,12.70409674,124.86,124.84,8.01025312]
[1744810193705,12.70409674,124.87,124.84,8.01025312]
[1744810194107,12.70409674,124.88,124.84,8.01025312]
[1744810194501,5.89626712,124.87,124.84,8.01025312]
[1744810195211,18.60036386,124.87,124.84,8.01025312]
[1744810195710,12.70409674,124.87,124.84,8.01025312]
[1744810196528,12.70409674,124.87,124.83,8.01089481]
[1744810196903,12.70409674,124.88,124.83,40.74222859]
[1744810197413,5.89830438,124.87,124.83,40.74222859]
[1744810198214,18.60240112,124.87,124.83,28.03813185]
[1744810198400,12.70409674,124.87,124.83,28.03813185]
[1744810200122,12.70409674,124.88,124.83,40.74222859]
[1744810200314,27.5892,124.92,124.84,31.49590717]
[1744810200503,12.70409674,124.88,124.84,18.79181043]
[1744810200702,12.70409674,124.9,124.85,12.70409674]
[1744810200924,35.59477508,124.92,124.85,1.6512]
[1744810200925,12.70409674,124.89,124.85,1.6512]
[1744810201112,12.70409674,124.9,124.85,14.35529674]
[1744810201431,12.70409674,124.89,124.85,1.6512]
[1744810201636,9.59477508,124.92,124.85,1.6512]
[1744810201817,12.70409674,124.89,124.85,1.6512]
[1744810202017,5.90441467,124.88,124.85,1.6512]
[1744810202336,12.70409674,124.86,124.83,26.0]
[1744810202639,12.70409674,124.84,124.8,8.01282051]
[1744810202802,5.90441467,124.83,124.79,8.01316353]
[1744810203007,5.90441467,124.83,124.79,40.75091681]
[1744810203852,5.90441467,124.83,124.82,31.49590717]
[1744810204020,12.70409674,124.88,124.83,12.70409674]
[1744810204217,12.70409674,124.87,124.83,12.70409674]
[1744810204513,1.597,124.91,124.85,12.70409674]
[1744810204714,12.70409674,124.9,124.85,12.70409674]
[1744810204909,12.70409674,124.9,124.86,18.79181043]
[1744810205128,34.00471309,124.93,124.87,12.70409674]
[1744810205310,12.70409674,124.88,124.83,8.01057479]
[1744810205513,12.70409674,124.84,124.78,20.03477701]
[1744810205723,12.70409674,124.8,124.77,16.14714713]
[1744810205936,12.70409674,124.8,124.77,36.18401496]
[1744810206110,26.0,124.85,124.77,62.18401496]
[1744810206310,12.70409674,124.81,124.77,74.8881117]
[1744810206608,8.00832866,124.87,124.79,12.70409674]
[1744810206913,12.70409674,124.84,124.8,18.64964886]
[1744810207315,19.85127297,124.85,124.81,19.85127297]
[1744810207618,19.85127297,124.86,124.81,19.85127297]
[1744810207812,19.85127297,124.88,124.83,19.85127297]
[1744810208015,1.6091,124.92,124.85,19.85127297]
[1744810208214,19.85127297,124.91,124.86,19.85127297]
[1744810208417,19.85127297,124.89,124.86,8.00897004]
[1744810209020,19.85127297,124.9,124.86,8.00897004]
[1744810209531,19.85127297,124.89,124.86,8.00897004]
[1744810209735,19.85127297,124.87,124.82,8.01153661]
[1744810209927,19.85127297,124.84,124.82,8.01153661]
[1744810210129,19.85127297,124.83,124.81,8.01186537]
[1744810210425,19.85127297,124.82,124.77,8.01474713]
[1744810210618,19.85127297,124.79,124.77,8.01474713]
[1744810210817,19.85127297,124.8,124.77,8.01474713]
[1744810211015,19.85127297,124.85,124.8,18.64964886]
[1744810211244,19.85127297,124.86,124.81,19.85127297]
[1744810211448,19.85127297,124.82,124.77,28.05161496]
[1744810211748,19.85127297,124.81,124.77,34.01474713]
[1744810212153,19.85127297,124.83,124.78,38.50092183]
[1744810212330,19.85127297,124.84,124.79,19.85127297]
[1744810212523,26.0,124.87,124.81,19.85127297]
[1744810212847,19.85127297,124.85,124.8,47.89614476]
[1744810213214,19.85127297,124.87,124.82,19.85127297]
[1744810213417,7.8106,124.94,124.86,19.85127297]
[1744810213636,19.85127297,124.92,124.87,19.85127297]
[1744810214023,19.85127297,124.94,124.89,19.85127297]
[1744810214417,19.85127297,124.91,124.87,6.4022]
[1744810214617,19.85127297,124.91,124.88,8.00768737]
[1744810214830,19.85127297,124.92,124.88,8.00768737]
[1744810215552,45.85127297,124.94,124.89,19.85127297]
[1744810216236,5.90642961,124.93,124.89,19.85127297]
[1744810216426,5.90642961,124.93,124.9,19.85127297]
[1744810216626,5.90642961,124.93,124.91,8.00576415]
[1744810216826,25.75770258,124.93,124.9,8.0061437]
[1744810217241,5.90642961,124.93,124.9,8.0061437]
[1744810217743,31.71718866,124.94,124.9,8.0061437]
[1744810218036,31.71718866,124.95,124.9,39.72333236]
[1744810218449,31.71718866,124.95,124.9,59.73934517]
[1744810219454,31.71718866,124.94,124.9,8.0061437]
[1744810219656,31.71718866,124.95,124.91,18.64964886]
[1744810219850,1.664,124.98,124.91,50.50899909]
[1744810219851,31.71718866,124.97,124.91,50.50899909]
[1744810220157,31.71718866,124.94,124.9,59.73934517]
[1744810220353,31.71718866,124.94,124.9,28.02215651]
[1744810220830,8.002012,124.97,124.9,59.73934517]
[1744810221035,31.71718866,124.94,124.9,8.0061437]
[1744810221237,8.002012,124.97,124.9,39.72333236]
[1744810221450,31.71718866,124.95,124.9,39.72333236]
[1744810221750,31.71718866,124.94,124.9,39.72333236]
[1744810221930,31.71718866,124.94,124.9,8.0061437]
[1744810222345,31.71718866,124.95,124.9,39.72333236]
[1744810222536,31.71718866,124.94,124.9,8.0061437]
[1744810222947,31.71718866,124.95,124.9,39.72333236]
[1744810223254,31.71718866,124.94,124.9,39.72333236]
[1744810223657,31.71718866,124.94,124.9,8.0061437]
[1744810223950,31.71718866,124.97,124.92,31.71718866]
[1744810224337,26.0,124.97,124.92,31.71718866]
[1744810224636,5.89146378,124.96,124.92,31.71718866]
[1744810224834,5.89146378,124.96,124.93,31.71718866]
[1744810225467,14.5722985,125.0,124.93,31.71718866]
[1744810225638,31.71718866,124.97,124.94,8.00384184]
[1744810225838,8.00109638,124.99,124.94,8.00384184]
[1744810226061,31.71718866,124.99,124.94,39.7210305]
[1744810226266,7.6611,125.04,124.98,31.71718866]
[1744810226551,31.71718866,125.0,124.96,44.79181043]
[1744810227030,31.71718866,125.01,124.96,76.50899909]
[1744810227236,26.0,125.05,124.98,31.71718866]
[1744810227438,31.71718866,125.01,124.97,31.71718866]
[1744810227649,31.71718866,125.01,124.96,76.50899909]
[1744810227856,31.71718866,125.01,124.97,8.00192046]
[1744810228251,18.64964886,125.06,124.97,8.00192046]
[1744810228252,7.99616184,125.06,124.99,31.71718866]
[1744810228563,7.99616184,125.06,124.98,18.79181043]
[1744810228564,31.71718866,125.05,125.0,31.71718866]
[1744810228950,31.71718866,125.04,124.99,31.71718866]
[1744810229339,31.71718866,125.01,124.97,28.00672161]
[1744810229539,53.98656644,125.06,124.97,39.71910912]
[1744810229860,33.99616184,125.06,124.99,31.71718866]
[1744810230059,31.71718866,125.04,124.99,31.71718866]
[1744810230555,31.71718866,125.06,125.01,50.50899909]
[1744810230758,31.71718866,125.04,125.0,6.357]
[1744810231145,31.71718866,125.02,124.97,8.00192046]
[1744810231352,18.64964886,125.06,124.97,8.00192046]
[1744810231353,31.71718866,125.01,124.97,8.00192046]
[1744810231539,31.71718866,125.02,124.97,39.71910912]
[1744810232053,31.71718866,125.01,124.97,39.71910912]
[1744810232851,31.71718866,125.02,124.97,39.71910912]
[1744810233776,31.71718866,125.02,124.97,8.00192046]
[1744810233948,39.71592718,125.02,124.97,39.71910912]
[1744810234265,31.71718866,124.99,124.96,6.357]
[1744810234461,31.71718866,125.0,124.96,6.357]
[1744810234666,7.99873852,125.02,124.96,6.357]
[1744810234667,31.71718866,124.99,124.96,6.357]
[1744810235166,7.99873852,125.02,124.96,6.357]
[1744810235464,31.71718866,125.0,124.96,14.35956081]
[1744810235680,7.99808046,125.03,124.96,46.07674947]
[1744810235866,31.71718866,125.01,124.96,46.07674947]
[1744810236268,31.71718866,125.01,124.96,66.08315151]
[1744810236482,31.71718866,125.02,124.97,31.71718866]
[1744810236666,57.71718866,125.03,124.98,31.71718866]
[1744810236961,31.71718866,125.01,124.97,31.71718866]
[1744810237163,31.71718866,125.0,124.96,46.07674947]
[1744810237371,26.0,125.03,124.98,27.79863663]
[1744810237549,45.79735643,125.03,124.98,27.79863663]
[1744810237749,19.79735643,125.02,124.98,27.79863663]
[1744810237949,19.79735643,125.03,124.98,27.79863663]
[1744810238377,19.79735643,125.02,124.98,27.79863663]
[1744810238673,19.79735643,125.02,124.98,8.0012802]
[1744810239166,19.79735643,125.02,124.98,27.79863663]
[1744810239550,19.79735643,125.03,124.98,27.79863663]
[1744810239869,19.79735643,125.04,125.0,19.79735643]
[1744810240053,19.79735643,125.05,125.0,19.79735643]
[1744810240248,27.9478,125.1,125.04,19.79735643]
[1744810240249,1.6419,125.1,125.04,19.79735643]
[1744810240449,19.79735643,125.1,125.05,19.79735643]
[1744810241270,7.99263018,125.12,125.06,19.79735643]
[1744810241565,33.99263018,125.12,125.06,19.79735643]
[1744810241767,19.79735643,125.11,125.07,7.9955225]
[1744810241959,19.79735643,125.1,125.07,7.9955225]
[1744810242150,19.79735643,125.1,125.06,7.99583294]
[1744810242770,19.79735643,125.1,125.06,27.79318937]
[1744810242967,19.79735643,125.07,125.03,7.99808046]
[1744810243166,31.65824782,125.05,125.03,7.99808046]
[1744810243572,31.65824782,125.04,125.02,7.99850389]
[1744810243767,31.65824782,125.03,125.01,7.99915597]
[1744810243957,31.65824782,125.02,124.99,8.00064005]
[1744810244165,31.65824782,125.01,124.99,8.00064005]
[1744810244557,31.65824782,125.02,124.99,8.00064005]
[1744810244758,26.0,125.06,124.99,28.00224017]
[1744810244970,31.65824782,125.04,124.99,59.66048799]
[1744810245271,26.0,125.06,125.0,50.45005825]
[1744810245468,31.65824782,125.05,125.0,50.45005825]
[1744810245667,31.65824782,125.06,125.01,31.65824782]
[1744810245981,31.65824782,125.06,125.02,7.9987202]
[1744810246857,31.65824782,125.06,125.02,39.65696802]
[1744810247065,31.65824782,125.06,125.02,7.9987202]
[1744810247260,31.65824782,125.06,125.02,39.65696802]
[1744810247565,31.65824782,125.07,125.02,39.65696802]
[1744810248267,31.65824782,125.06,125.02,39.65696802]
[1744810249099,31.65824782,125.05,125.02,7.9987202]
[1744810249278,31.65824782,125.06,125.02,7.9987202]
[1744810251097,31.65824782,125.05,125.02,7.9987202]
[1744810251663,31.65824782,125.03,124.98,8.1269]
[1744810251897,31.65824782,125.0,124.98,8.00095251]
[1744810252097,31.65824782,124.99,124.98,8.00095251]
[1744810252300,31.65824782,125.0,124.96,8.00256081]
[1744810252490,31.65824782,124.97,124.95,14.27208972]
[1744810252694,31.65824782,124.97,124.95,8.00288972]
[1744810252890,31.65824782,124.98,124.95,8.00288972]
[1744810253277,31.65824782,124.97,124.95,8.00288972]
[1744810253591,31.65824782,124.98,124.95,8.00288972]
[1744810254175,31.65824782,124.97,124.95,8.00288972]
[1744810254377,31.65824782,124.96,124.94,8.00384184]
[1744810255216,31.65824782,124.95,124.89,26.39136487]
[1744810255509,31.65824782,124.94,124.9,18.64964886]
[1744810255804,31.65824782,124.94,124.89,84.04961269]
[1744810256105,31.65824782,124.94,124.9,8.00640512]
[1744810256308,31.65824782,124.94,124.9,26.65605398]
[1744810256610,31.65824782,124.95,124.9,58.3143018]
[1744810256797,31.65824782,124.94,124.9,26.65605398]
[1744810257119,31.65824782,124.91,124.84,255.6755]
[1744810257304,31.65824782,124.9,124.85,59.69134546]
[1744810257476,31.65824782,124.89,124.85,8.00961153]
[1744810257683,31.65824782,124.87,124.84,8.01022516]
[1744810258109,31.65824782,124.88,124.84,8.01022516]
[1744810258282,0.14216157,124.93,124.84,8.01022516]
[1744810258283,8.00512327,124.92,124.84,8.01022516]
[1744810258487,31.65824782,124.86,124.8,6.1555]
[1744810258811,31.65824782,124.85,124.81,8.01217851]
[1744810259604,31.65824782,124.85,124.8,56.46339668]
[1744810259605,31.65824782,124.83,124.8,8.01259047]
[1744810259905,31.65824782,124.82,124.8,8.01259047]
[1744810260282,31.65824782,124.81,124.78,8.01386017]
[1744810260602,31.65824782,124.79,124.71,83.0]
[1744810260803,26.0,124.78,124.72,8.01796023]
[1744810261003,31.65824782,124.75,124.72,8.01796023]
[1744810261629,31.65824782,124.75,124.67,8.0211759]
[1744810261630,31.65824782,124.73,124.67,8.0211759]
[1744810261801,31.65824782,124.69,124.66,123.73774215]
[1744810262120,31.65824782,124.67,124.66,123.73774215]
[1744810262414,8.01951484,124.7,124.66,123.73774215]
[1744810262709,31.65824782,124.67,124.66,123.73774215]
[1744810263303,31.65824782,124.67,124.61,10.97338509]
[1744810263304,63.31649564,124.67,124.61,10.97338509]
[1744810263611,26.0,124.67,124.61,10.97338509]
[1744810263999,31.65824782,124.66,124.61,42.63163291]
[1744810264202,31.65824782,124.63,124.61,2.9485335]
[1744810264396,16.14499055,124.66,124.61,2.9485335]
[1744810264595,31.65824782,124.63,124.61,10.97348679]
[1744810264794,47.80323837,124.66,124.61,10.97348679]
[1744810264995,16.14499055,124.62,124.6,50.45005825]
[1744810265192,31.65824782,124.63,124.56,372.85878751]
[1744810265495,16.14499055,124.65,124.5,83.21324235]
[1744810265496,31.65824782,124.6,124.5,83.21324235]
[1744810265688,31.65824782,124.59,124.5,83.0]
[1744810265886,31.65824782,124.56,124.5,58.92294067]
[1744810266081,31.65824782,124.6,124.51,31.65824782]
[1744810266295,42.14499055,124.62,124.55,8.02890405]
[1744810266487,31.65824782,124.58,124.55,8.02890405]
[1744810266713,37.70730423,124.58,124.55,8.02890405]
[1744810267008,69.36555205,124.58,124.55,8.02890405]
[1744810267305,48.38926243,124.56,124.44,84.0]
[1744810267509,37.70730423,124.58,124.54,48.38926243]
[1744810267710,37.70730423,124.58,124.46,48.38926243]
[1744810267711,16.14499055,124.57,124.53,48.38926243]
[1744810267882,16.14499055,124.57,124.54,48.38926243]
[1744810268088,16.14499055,124.57,124.56,48.38926243]
[1744810268320,16.14499055,124.57,124.53,8.03019352]
[1744810268519,64.53425298,124.57,124.5,8.03212851]
[1744810268728,48.38926243,124.51,124.46,8.03470994]
[1744810268911,26.0,124.53,124.44,8.03600128]
[1744810269086,26.0,124.53,124.44,34.03600128]
[1744810269417,48.38926243,124.5,124.45,48.38926243]
[1744810269620,48.38926243,124.5,124.44,34.03600128]
[1744810269821,48.38926243,124.49,124.44,34.03600128]
[1744810270027,48.38926243,124.48,124.44,8.03600128]
[1744810270200,48.38926243,124.48,124.43,18.64964886]
[1744810270201,24.00074491,124.46,124.43,8.03664632]
[1744810270398,24.00074491,124.46,124.4,28.13429969]
[1744810270736,24.00074491,124.46,124.45,67.03891129]
[1744810270940,48.00148982,124.49,124.46,26.14216157]
[1744810271228,16.14499055,124.52,124.51,44.79181043]
[1744810271391,32.96634074,124.53,124.52,18.79181043]
[1744810271595,32.96634074,124.53,124.52,115.57033529]
[1744810271818,21.56231368,124.58,124.56,18.64964886]
[1744810272015,21.56231368,124.58,124.49,0.14216157]
[1744810272016,48.38926243,124.57,124.49,0.14216157]
[1744810272209,48.38926243,124.53,124.49,18.64964886]
[1744810272409,29.58950852,124.58,124.53,8.02968434]
[1744810272410,21.56231368,124.58,124.53,8.02968434]
[1744810272611,21.56231368,124.58,124.55,48.38926243]
[1744810272912,21.56231368,124.58,124.54,48.531424]
[1744810273105,21.56231368,124.58,124.55,67.03891129]
[1744810273696,21.56231368,124.58,124.56,48.38926243]
[1744810273898,8.01989109,124.69,124.6,26.0]
[1744810274098,48.38926243,124.69,124.64,48.38926243]
[1744810274430,48.38926243,124.67,124.62,48.38926243]
[1744810274596,48.38926243,124.68,124.63,48.38926243]
[1744810274803,48.38926243,124.69,124.64,48.38926243]
[1744810275110,9.67823521,124.7,124.63,48.38926243]
[1744810275316,74.38926243,124.67,124.59,0.14216157]
[1744810275498,74.38926243,124.67,124.58,8.02674587]
[1744810275811,48.38926243,124.6,124.56,8.02825947]
[1744810276008,48.38926243,124.61,124.56,56.4175219]
[1744810276195,48.38926243,124.6,124.56,8.02825947]
[1744810276809,8.02398759,124.63,124.56,8.02825947]
[1744810276810,48.38926243,124.61,124.56,8.02825947]
[1744810277020,74.38926243,124.64,124.59,48.38926243]
[1744810277217,26.0,124.63,124.59,48.38926243]
[1744810277423,26.0,124.64,124.6,48.38926243]
[1744810277622,74.38926243,124.65,124.6,48.38926243]
[1744810277849,48.38926243,124.64,124.59,48.38926243]
[1744810278223,8.0216825,124.67,124.59,48.38926243]
[1744810278419,1.6589,124.7,124.64,48.38926243]
[1744810278648,8.01667468,124.74,124.68,48.38926243]
[1744810278817,26.0,124.73,124.69,48.38926243]
[1744810279023,26.0,124.73,124.68,48.38926243]
[1744810279234,48.38926243,124.72,124.67,48.38926243]
[1744810279437,26.0,124.73,124.65,48.38926243]
[1744810279438,48.38926243,124.7,124.65,48.38926243]
[1744810279717,48.38926243,124.69,124.65,8.02222612]
[1744810279939,48.38926243,124.7,124.65,56.41148855]
[1744810280123,48.38926243,124.66,124.61,8.02503811]
[1744810280320,48.38926243,124.66,124.59,20.06480415]
[1744810280321,48.38926243,124.62,124.58,8.02697062]
[1744810280721,48.38926243,124.59,124.52,8.03083841]
[1744810280944,48.38926243,124.56,124.52,8.03083841]
[1744810281141,48.38926243,124.56,124.52,34.03083841]
[1744810281346,48.38926243,124.58,124.53,48.38926243]
[1744810281544,48.38926243,124.56,124.52,8.03083841]
[1744810281853,48.38926243,124.55,124.52,8.03083841]
[1744810282033,26.0,124.58,124.51,8.03130274]
[1744810282234,48.38926243,124.54,124.49,48.38926243]
[1744810282432,48.38926243,124.53,124.47,20.08508295]
[1744810282641,48.38926243,124.54,124.49,48.38926243]
[1744810282822,48.38926243,124.54,124.5,8.03212851]
[1744810283026,26.0,124.57,124.52,48.38926243]
[1744810283240,48.38926243,124.56,124.52,48.38926243]
[1744810283450,26.0,124.57,124.53,48.38926243]
[1744810283926,26.0,124.57,124.54,48.38926243]
[1744810284121,48.38926243,124.59,124.54,48.38926243]
[1744810284326,26.0,124.61,124.55,48.38926243]
[1744810284521,48.38926243,124.6,124.55,48.38926243]
[1744810284718,48.38926243,124.62,124.57,48.38926243]
[1744810284948,26.0,124.61,124.57,48.38926243]
[1744810285250,8.02386016,124.63,124.58,48.38926243]
[1744810285251,48.38926243,124.63,124.58,48.38926243]
[1744810285449,26.0,124.62,124.58,48.38926243]
[1744810285749,48.38926243,124.61,124.55,26.82071448]
[1744810285951,48.38926243,124.61,124.56,48.38926243]
[1744810286152,74.38926243,124.62,124.57,48.38926243]
[1744810286341,48.38926243,124.61,124.56,48.38926243]
[1744810286528,48.38926243,124.59,124.55,8.02890405]
[1744810287125,48.38926243,124.59,124.51,48.38926243]
[1744810287126,48.38926243,124.56,124.51,48.38926243]
[1744810287337,26.0,124.56,124.51,48.38926243]
[1744810287547,48.38926243,124.56,124.51,48.38926243]
[1744810287729,48.38926243,124.55,124.51,48.38926243]
[1744810287927,48.38926243,124.54,124.48,18.64964886]
[1744810288141,48.38926243,124.53,124.47,8.03406443]
[1744810288351,48.38926243,124.51,124.47,56.42332686]
[1744810288543,48.38926243,124.51,124.47,8.03406443]
[1744810288856,48.38926243,124.51,124.46,56.42377477]
[1744810289160,48.38926243,124.52,124.47,48.38926243]
[1744810289448,48.38926243,124.54,124.49,48.38926243]
[1744810289648,26.0,124.54,124.5,48.38926243]
[1744810289827,48.38926243,124.55,124.51,48.38926243]
[1744810290033,48.38926243,124.54,124.48,0.14216157]
[1744810290247,26.0,124.57,124.48,48.38926243]
[1744810290562,26.0,124.57,124.53,48.38926243]
[1744810290741,8.02642502,124.59,124.53,48.38926243]
[1744810290945,48.38926243,124.57,124.53,8.03019352]
[1744810291143,48.38926243,124.56,124.51,56.42074584]
[1744810291455,48.38926243,124.56,124.52,48.38926243]
[1744810291656,48.38926243,124.55,124.51,8.03148341]
[1744810291841,48.38926243,124.56,124.51,8.03148341]
[1744810292038,26.0,124.57,124.52,48.38926243]
[1744810292247,26.0,124.57,124.52,18.64964886]
[1744810292447,48.38926243,124.58,124.53,48.38926243]
[1744810292762,252.0131,124.61,124.52,18.64964886]
[1744810292763,74.38926243,124.59,124.54,48.38926243]
[1744810292961,74.38926243,124.59,124.55,56.41816648]
[1744810293134,14.48616505,124.63,124.56,48.38926243]
[1744810293335,74.38926243,124.62,124.57,48.38926243]
[1744810293536,26.0,124.55,124.46,6.1325]
[1744810293754,48.38926243,124.47,124.43,8.03664711]
[1744810293957,48.38926243,124.48,124.43,8.03664711]
[1744810294159,26.0,124.51,124.43,28.12826488]
[1744810294356,48.38926243,124.49,124.44,48.38926243]
[1744810294553,48.38926243,124.49,124.44,18.64964886]
[1744810294753,48.38926243,124.48,124.44,18.64964886]
[1744810294945,48.38926243,124.5,124.45,56.42461799]
[1744810295149,48.38926243,124.49,124.45,8.03535556]
[1744810295450,26.0,124.54,124.48,48.38926243]
[1744810295636,26.0,124.54,124.49,48.38926243]
[1744810295837,48.38926243,124.55,124.5,48.38926243]
[1744810296139,48.38926243,124.54,124.49,48.38926243]
[1744810296333,48.38926243,124.55,124.5,48.38926243]
[1744810296645,48.38926243,124.54,124.49,48.38926243]
[1744810296839,48.38926243,124.55,124.5,48.38926243]
[1744810297029,48.38926243,124.55,124.47,0.14216157]
[1744810297030,48.38926243,124.55,124.48,28.11696657]
[1744810297235,34.02828319,124.56,124.51,48.38926243]
[1744810297236,26.0,124.56,124.51,48.38926243]
[1744810297454,48.38926243,124.55,124.49,18.79181043]
[1744810297757,48.38926243,124.55,124.49,18.64964886]
[1744810297953,48.38926243,124.55,124.5,48.38926243]
[1744810298261,74.38926243,124.56,124.51,48.38926243]
[1744810298473,6.2414,124.58,124.51,48.38926243]
[1744810298474,258.456,124.62,124.55,48.38926243]
[1744810298638,8.02392687,124.63,124.58,48.38926243]
[1744810298838,8.02392687,124.63,124.59,48.38926243]
[1744810299135,48.38926243,124.63,124.58,48.38926243]
[1744810299349,48.38926243,124.64,124.59,48.38926243]
[1744810299571,14.52831713,124.66,124.61,48.38926243]
[1744810299774,48.38926243,124.64,124.59,48.38926243]
[1744810300080,48.38926243,124.65,124.6,48.38926243]
[1744810300257,48.38926243,124.64,124.59,48.38926243]